bitfinex-derivatives/quotes_BTCF0:USTF0_20241015
["timestamp","ask_amount","ask_price","bid_price","bid_amount"]
[1728981786548,0.3608,65785.0,65784.0,0.42318044]
[1728981787255,0.3608,65785.0,65784.0,0.54318044]
[1728981787558,0.0106,65795.0,65794.0,0.076028]
[1728981787856,1.5008,65798.0,65797.0,0.076025]
[1728981788054,0.3608,65803.0,65797.0,0.076025]
[1728981788055,0.3608,65803.0,65797.0,0.34674044]
[1728981788246,0.3608,65803.0,65794.0,0.10659161]
[1728981788247,0.3608,65803.0,65801.0,0.19642]
[1728981788447,1.658619,65802.0,65801.0,0.42316044]
[1728981788654,1.658619,65802.0,65801.0,0.29986179]
[1728981788849,1.658619,65802.0,65801.0,0.42240133]
[1728981789354,1.658619,65802.0,65801.0,0.42155073]
[1728981789550,1.5826,65802.0,65801.0,0.42155073]
[1728981790263,1.5826,65802.0,65801.0,0.30155073]
[1728981790755,1.659619,65802.0,65801.0,0.30255073]
[1728981790944,1.779619,65802.0,65801.0,0.30255073]
[1728981791144,1.780619,65802.0,65801.0,0.30255073]
[1728981791453,1.780619,65802.0,65801.0,0.18012742]
[1728981792554,1.780619,65802.0,65801.0,0.27091649]
[1728981792753,1.780619,65802.0,65801.0,0.18012742]
[1728981793550,1.780619,65802.0,65801.0,0.27089821]
[1728981794060,2.01600461,65802.0,65796.0,0.12]
[1728981794253,1.780619,65802.0,65801.0,0.07602]
[1728981794560,2.0161142,65802.0,65801.0,0.07602]
[1728981794956,2.21329197,65802.0,65801.0,0.07602]
[1728981795858,2.0161142,65802.0,65801.0,0.04654298]
[1728981796364,2.0151142,65802.0,65801.0,0.04654298]
[1728981796558,2.0151142,65802.0,65801.0,0.04854298]
[1728981799059,2.01037307,65802.0,65801.0,0.07571014]
[1728981800259,1.93435407,65802.0,65801.0,0.07571014]
[1728981800855,2.01037307,65802.0,65801.0,0.07571014]
[1728981801058,1.97670836,65802.0,65801.0,0.07571014]
[1728981801458,1.779619,65802.0,65801.0,0.07571014]
[1728981803060,1.778619,65802.0,65801.0,0.07571014]
[1728981807058,1.738319,65802.0,65801.0,0.07571014]
[1728981807253,1.738319,65802.0,65801.0,0.13622394]
[1728981808469,1.738319,65802.0,65801.0,0.07571014]
[1728981808667,1.738319,65802.0,65801.0,0.13620038]
[1728981808964,1.738319,65802.0,65801.0,0.13619959]
[1728981809159,1.738319,65802.0,65801.0,0.13620079]
[1728981809569,2.099119,65802.0,65801.0,0.07571014]
[1728981809774,2.099119,65802.0,65801.0,0.13621257]
[1728981810458,1.738319,65802.0,65801.0,0.07571014]
[1728981810662,1.738319,65802.0,65801.0,0.1362136]
[1728981811173,1.738319,65802.0,65801.0,0.1362129]
[1728981811664,2.099119,65802.0,65801.0,0.07571014]
[1728981811872,2.099119,65802.0,65801.0,0.13622561]
[1728981812670,2.099119,65802.0,65801.0,0.07571014]
[1728981815473,2.099119,65802.0,65801.0,0.25674075]
[1728981816167,2.32996417,65802.0,65795.0,0.12]
[1728981816366,0.076023,65799.0,65798.0,0.076021]
[1728981816571,0.24447275,65799.0,65798.0,0.076021]
[1728981816769,0.36447275,65799.0,65798.0,0.076021]
[1728981818287,0.36547275,65799.0,65798.0,0.076021]
[1728981820290,0.36647275,65799.0,65798.0,0.076021]
[1728981823494,0.36582697,65799.0,65798.0,0.076021]
[1728981823986,0.36582697,65799.0,65798.0,0.31187494]
[1728981823987,0.22739269,65799.0,65798.0,0.31187494]
[1728981824191,0.15998399,65799.0,65798.0,0.31187494]
[1728981825503,0.15998399,65799.0,65798.0,0.18362048]
[1728981826698,0.15998399,65799.0,65798.0,0.31154529]
[1728981826896,0.15998399,65799.0,65798.0,0.18362048]
[1728981827106,0.03998399,65799.0,65798.0,0.18362048]
[1728981831092,0.20778825,65799.0,65798.0,0.01058807]
[1728981831292,0.20778825,65799.0,65793.0,0.07603]
[1728981831597,0.1132718,65798.0,65797.0,0.076024]
[1728981832696,0.1142718,65798.0,65797.0,0.077024]
[1728981833095,0.1142718,65798.0,65797.0,0.116524]
[1728981833997,0.1152718,65798.0,65797.0,0.11860673]
[1728981835699,0.28254879,65798.0,65797.0,0.47940673]
[1728981836198,0.1152718,65798.0,65797.0,0.47940673]
[1728981837301,0.1152718,65798.0,65797.0,0.48148946]
[1728981838102,0.002,65798.0,65797.0,0.48148946]
[1728981843497,0.002,65798.0,65797.0,0.44198946]
[1728981846812,0.002,65798.0,65797.0,0.50259179]
[1728981848111,0.002,65798.0,65797.0,0.14179179]
[1728981848814,0.002,65798.0,65797.0,0.08118946]
[1728981854307,0.06860126,65798.0,65797.0,0.12]
[1728981854613,0.11526933,65798.0,65797.0,0.12]
[1728981855014,0.11526933,65798.0,65797.0,0.196024]
[1728981857123,0.11526933,65798.0,65797.0,0.12952265]
[1728981860114,0.11526939,65798.0,65797.0,0.12952265]
[1728981861216,0.11526939,65798.0,65797.0,0.36825813]
[1728981861217,0.002,65798.0,65797.0,0.36825813]
[1728981861423,0.002,65798.0,65797.0,0.3682665]
[1728981861724,0.076019,65802.0,65801.0,0.07602]
[1728981861919,0.076019,65802.0,65801.0,0.30533789]
[1728981862726,0.076019,65802.0,65801.0,0.3151569]
[1728981863818,0.076019,65802.0,65801.0,0.3161569]
[1728981864013,0.076019,65802.0,65801.0,0.18733789]
[1728981864324,0.076019,65802.0,65801.0,0.27827464]
[1728981864527,0.076019,65802.0,65801.0,0.18733789]
[1728981865727,0.076019,65802.0,65801.0,0.27827181]
[1728981865931,0.076019,65802.0,65801.0,0.18733789]
[1728981867019,0.076019,65802.0,65801.0,0.11131789]
[1728981867215,0.196019,65802.0,65801.0,0.11131789]
[1728981867420,0.076019,65802.0,65801.0,0.11131789]
[1728981867817,0.196019,65802.0,65801.0,0.11131789]
[1728981868025,0.196019,65802.0,65792.0,0.07953]
[1728981868026,0.076022,65800.0,65792.0,0.0035]
[1728981868329,0.076033,65790.0,65789.0,0.0035]
[1728981868531,0.076039,65785.0,65784.0,0.07644]
[1728981868723,0.196039,65785.0,65784.0,0.07644]
[1728981868918,0.196039,65785.0,65784.0,0.0004]
[1728981869119,0.196039,65785.0,65784.0,0.02757144]
[1728981869420,0.16824201,65785.0,65784.0,0.19604]
[1728981869922,0.11369728,65785.0,65784.0,0.19604]
[1728981870818,0.08431445,65785.0,65784.0,0.19604]
[1728981871019,0.11368843,65785.0,65784.0,0.19604]
[1728981871218,0.11368843,65785.0,65784.0,0.07604]
[1728981871424,0.11368843,65785.0,65784.0,0.19604]
[1728981871614,0.11568843,65785.0,65784.0,0.19604]
[1728981875720,0.1156922,65785.0,65784.0,0.19604]
[1728981876325,0.06147349,65788.0,65784.0,0.3952686]
[1728981876520,0.06147349,65788.0,65787.0,0.076437]
[1728981876717,0.18147349,65788.0,65787.0,0.20381443]
[1728981877532,0.18247349,65788.0,65787.0,0.20381443]
[1728981878320,0.18347349,65788.0,65787.0,0.21681443]
[1728981880029,0.18347349,65788.0,65787.0,0.14077743]
[1728981882131,0.18347349,65788.0,65787.0,0.21681443]
[1728981882330,0.18347349,65788.0,65787.0,0.14077743]
[1728981882935,0.18347349,65788.0,65787.0,0.24655243]
[1728981883723,0.18347349,65788.0,65787.0,0.119175]
[1728981884237,0.30347349,65788.0,65787.0,0.14676687]
[1728981884537,0.41676755,65788.0,65787.0,0.04099187]
[1728981885538,0.41677607,65788.0,65787.0,0.04099187]
[1728981885837,0.29677607,65788.0,65787.0,0.04099187]
[1728981886138,0.41677607,65788.0,65787.0,0.04099187]
[1728981886828,0.3700943,65788.0,65787.0,0.04099187]
[1728981887630,0.3700943,65788.0,65787.0,0.04307504]
[1728981888136,0.41677431,65788.0,65787.0,0.04307504]
[1728981888441,0.29677431,65788.0,65787.0,0.04307504]
[1728981889537,0.41677431,65788.0,65787.0,0.04307504]
[1728981889734,0.29677431,65788.0,65787.0,0.04307504]
[1728981890138,0.41677431,65788.0,65787.0,0.04307504]
[1728981890438,0.4167718,65788.0,65787.0,0.04307504]
[1728981890741,0.2967718,65788.0,65787.0,0.04401694]
[1728981890941,0.4167718,65788.0,65787.0,0.04401694]
[1728981891130,0.4167718,65788.0,65782.0,0.07519888]
[1728981891131,0.47131703,65788.0,65782.0,0.07519888]
[1728981891327,0.3629748,65783.0,65782.0,0.07519888]
[1728981891529,0.2869338,65783.0,65782.0,0.30817214]
[1728981891731,0.3629748,65783.0,65782.0,0.30817214]
[1728981891939,0.3629748,65783.0,65782.0,0.33597833]
[1728981892440,0.3629748,65783.0,65782.0,0.34897833]
[1728981892634,0.3639748,65783.0,65782.0,0.36297833]
[1728981892829,0.3639748,65783.0,65782.0,0.16109147]
[1728981893032,0.3639748,65783.0,65782.0,0.25188058]
[1728981893235,0.3639748,65783.0,65782.0,0.16109147]
[1728981893441,0.3649748,65783.0,65782.0,0.16109147]
[1728981893744,0.3649748,65783.0,65782.0,0.13328528]
[1728981896242,0.7257748,65783.0,65782.0,0.13328528]
[1728981896442,0.7257748,65783.0,65782.0,0.13536845]
[1728981897941,0.558841,65783.0,65782.0,0.13536845]
[1728981898137,0.558841,65783.0,65782.0,0.2621155]
[1728981898647,0.558841,65783.0,65782.0,0.13536845]
[1728981899142,0.558841,65783.0,65782.0,0.21141045]
[1728981900145,2.058841,65783.0,65782.0,0.10512517]
[1728981900338,0.558841,65783.0,65782.0,0.21138561]
[1728981902239,0.558841,65783.0,65782.0,0.13534361]
[1728981902646,0.558841,65783.0,65782.0,0.13742678]
[1728981903556,0.558841,65783.0,65782.0,0.1374529]
[1728981905446,2.058841,65783.0,65782.0,0.1374529]
[1728981906348,2.15065618,65783.0,65779.0,0.04479909]
[1728981906541,0.196045,65780.0,65779.0,0.04479909]
[1728981906745,0.30935184,65780.0,65779.0,0.04479909]
[1728981906955,0.36390118,65780.0,65779.0,0.04479909]
[1728981907547,0.36390118,65780.0,65779.0,0.04579909]
[1728981908152,0.36590118,65780.0,65779.0,0.04679909]
[1728981908455,0.3659,65780.0,65779.0,0.07484291]
[1728981909355,0.3659,65780.0,65779.0,0.07692608]
[1728981910344,0.3659,65780.0,65779.0,0.03212699]
[1728981913457,0.06872895,65780.0,65779.0,0.41458533]
[1728981913756,0.06872895,65780.0,65779.0,0.26656687]
[1728981913951,0.14477395,65780.0,65779.0,0.26656687]
[1728981915159,0.14477395,65780.0,65779.0,0.1390798]
[1728981915355,0.26477395,65780.0,65779.0,0.1390798]
[1728981915559,0.316045,65780.0,65779.0,0.1390798]
[1728981915859,0.196045,65780.0,65779.0,0.11103598]
[1728981916361,0.196045,65780.0,65771.0,0.0035]
[1728981916362,0.076054,65772.0,65771.0,0.0035]
[1728981916661,0.196054,65772.0,65771.0,0.12604524]
[1728981917260,0.196054,65772.0,65771.0,0.27240118]
[1728981917460,0.196054,65772.0,65771.0,0.37859115]
[1728981917652,0.077054,65772.0,65771.0,0.15643702]
[1728981917853,0.198054,65772.0,65771.0,0.15643702]
[1728981918056,0.198054,65772.0,65771.0,0.03039178]
[1728981918654,0.198054,65772.0,65771.0,0.40885365]
[1728981919553,0.198054,65772.0,65771.0,0.26257249]
[1728981919958,0.198054,65772.0,65771.0,0.40878394]
[1728981920359,0.198054,65772.0,65771.0,0.40868431]
[1728981921259,0.198054,65772.0,65771.0,0.26249413]
[1728981921460,0.198054,65772.0,65771.0,0.15630416]
[1728981921660,0.122,65772.0,65771.0,0.15630416]
[1728981921854,0.198054,65772.0,65771.0,0.15630416]
[1728981922856,0.198054,65772.0,65771.0,0.15584197]
[1728981924367,0.198054,65772.0,65771.0,0.03039178]
[1728981926051,0.198054,65772.0,65771.0,0.003]
[1728981926362,0.198054,65772.0,65763.0,0.10968997]
[1728981926363,0.076063,65764.0,65763.0,0.0035]
[1728981926572,0.076063,65764.0,65763.0,0.12574265]
[1728981926762,1.576063,65764.0,65763.0,0.12574265]
[1728981927159,1.576063,65764.0,65763.0,0.15257502]
[1728981927557,1.501,65764.0,65763.0,0.15357502]
[1728981927870,1.621,65764.0,65763.0,0.22963902]
[1728981928068,1.622,65764.0,65763.0,0.22963902]
[1728981929467,1.73583865,65764.0,65763.0,0.10389637]
[1728981929667,1.68914574,65764.0,65763.0,0.10389637]
[1728981930268,0.18914574,65764.0,65763.0,0.10389637]
[1728981930664,0.23583858,65764.0,65763.0,0.10389637]
[1728981931269,0.31190158,65764.0,65763.0,0.10389637]
[1728981933163,0.31190158,65764.0,65763.0,0.02783237]
[1728981933164,0.26520874,65764.0,65763.0,0.02783237]
[1728981933474,0.31190154,65764.0,65763.0,0.02783237]
[1728981934577,0.44874087,65764.0,65763.0,0.02783237]
[1728981935671,0.52204807,65764.0,65763.0,0.001]
[1728981935874,0.076071,65757.0,65755.0,0.079573]
[1728981936071,0.2259657,65756.0,65755.0,0.079573]
[1728981936276,0.26322155,65756.0,65755.0,0.0304639]
[1728981936577,0.26322155,65756.0,65755.0,0.26449313]
[1728981936578,0.17904735,65756.0,65755.0,0.26449313]
[1728981936974,0.17904735,65756.0,65755.0,0.34056713]
[1728981937577,0.18004735,65756.0,65755.0,0.34056713]
[1728981937871,0.18004735,65756.0,65755.0,0.33706713]
[1728981938276,0.18104735,65756.0,65755.0,0.33706713]
[1728981938777,0.122,65756.0,65755.0,0.33706713]
[1728981942180,0.122,65756.0,65755.0,0.33812623]
[1728981943276,0.122,65756.0,65755.0,0.59278767]
[1728981944376,0.122,65756.0,65755.0,0.46479284]
[1728981944575,0.122,65756.0,65755.0,0.1030379]
[1728981949478,0.198072,65756.0,65755.0,0.1030379]
[1728981950488,0.122,65756.0,65755.0,0.1030379]
[1728981951184,0.198072,65756.0,65755.0,0.1030379]
[1728981951390,0.122,65756.0,65755.0,0.1030379]
[1728981951580,0.198072,65756.0,65755.0,0.1030379]
[1728981951782,0.196072,65756.0,65755.0,0.3382999]
[1728981953781,0.076072,65756.0,65755.0,0.3382999]
[1728981953985,0.12,65756.0,65755.0,0.3382999]
[1728981954992,0.12,65756.0,65755.0,0.3376913]
[1728981955179,0.196072,65756.0,65755.0,0.3376913]
[1728981957979,0.1503977,65756.0,65755.0,0.3376913]
[1728981958183,0.1503977,65756.0,65755.0,0.44372457]
[1728981958589,0.17978506,65756.0,65755.0,0.1030379]
[1728981960892,0.12,65761.0,65755.0,0.1030379]
[1728981961189,0.556872,65756.0,65755.0,0.076074]
[1728981961394,0.556872,65756.0,65749.0,0.076079]
[1728981961395,0.076081,65750.0,65749.0,0.076079]
[1728981961593,0.196081,65750.0,65749.0,0.076079]
[1728981961997,0.12,65750.0,65745.0,0.3608]
[1728981962192,0.02938976,65749.0,65745.0,0.436885]
[1728981962391,0.316084,65746.0,65745.0,0.436885]
[1728981962585,0.14938976,65746.0,65745.0,0.436885]
[1728981962985,0.14938976,65746.0,65745.0,0.46476645]
[1728981963398,0.0106,65756.0,65755.0,0.076074]
[1728981963583,0.14938769,65761.0,65755.0,0.557274]
[1728981963895,0.02938769,65760.0,65759.0,0.076069]
[1728981964287,0.02938769,65760.0,65759.0,0.196069]
[1728981964702,0.12,65767.0,65759.0,0.196069]
[1728981964703,0.12,65764.0,65763.0,0.076064]
[1728981964891,0.14938346,65764.0,65763.0,0.437264]
[1728981966293,0.12,65764.0,65763.0,0.437264]
[1728981966487,0.06672134,65764.0,65763.0,0.98539279]
[1728981966683,0.07606,65768.0,65765.0,0.076061]
[1728981966887,0.122,65764.0,65763.0,0.438744]
[1728981967086,0.122,65764.0,65763.0,0.98542992]
[1728981968894,0.121,65764.0,65763.0,0.98542992]
[1728981969088,0.121,65764.0,65763.0,0.98080683]
[1728981969290,0.121,65764.0,65763.0,0.81454145]
[1728981969899,0.122,65764.0,65763.0,0.81454145]
[1728981970695,0.122,65764.0,65763.0,0.9359835]
[1728981971308,0.122,65764.0,65763.0,0.81454145]
[1728981971601,0.122,65764.0,65763.0,0.9359835]
[1728981973605,0.23604396,65764.0,65763.0,0.437264]
[1728981976696,0.23603649,65764.0,65763.0,0.437264]
[1728981978802,0.23603544,65764.0,65763.0,0.437264]
[1728981980806,0.11603544,65764.0,65763.0,0.437264]
[1728981981004,0.002,65764.0,65763.0,0.557264]
[1728981981205,0.11603544,65764.0,65763.0,0.557264]
[1728981981410,0.06934493,65764.0,65763.0,0.557264]
[1728981981613,0.15182432,65769.0,65768.0,0.076059]
[1728981981909,0.15182432,65769.0,65768.0,0.87598191]
[1728981982209,0.15182432,65769.0,65768.0,0.73943215]
[1728981982714,0.15282432,65769.0,65768.0,0.73943215]
[1728981983714,0.15382432,65769.0,65768.0,0.73943215]
[1728981984302,0.15382432,65769.0,65768.0,0.57366671]
[1728981984516,0.15382432,65769.0,65768.0,0.93446671]
[1728981985615,0.15382432,65769.0,65768.0,0.81446671]
[1728981986615,0.15382432,65769.0,65768.0,0.84250231]
[1728981988619,0.15382432,65769.0,65768.0,0.69646542]
[1728981989208,0.002,65769.0,65768.0,0.69646542]
[1728981990810,0.002,65769.0,65768.0,0.84228548]
[1728981993117,0.002,65769.0,65768.0,0.84221706]
[1728981996713,0.002,65769.0,65768.0,0.4652946]
[1728982002535,0.002,65769.0,65768.0,0.1044946]
[1728982002727,0.002,65769.0,65768.0,0.4652946]
[1728982003731,0.076049,65777.0,65775.0,0.07605]
[1728982003935,0.076049,65777.0,65776.0,0.23125769]
[1728982004135,0.076049,65777.0,65776.0,0.23165769]
[1728982006031,0.076049,65777.0,65776.0,0.30770669]
[1728982006331,0.196049,65777.0,65776.0,0.30770669]
[1728982007832,0.197049,65777.0,65776.0,0.30770669]
[1728982008228,0.197049,65777.0,65776.0,0.48121016]
[1728982008229,0.198049,65777.0,65776.0,0.48121016]
[1728982010035,0.122,65777.0,65776.0,0.48021016]
[1728982010437,0.122,65777.0,65776.0,0.6017091]
[1728982011239,0.122,65777.0,65776.0,0.48021016]
[1728982011445,0.122,65777.0,65776.0,0.60188928]
[1728982011639,0.122,65777.0,65776.0,0.33127182]
[1728982011949,0.122,65777.0,65776.0,0.33439501]
[1728982012241,0.122,65777.0,65776.0,0.2095927]
[1728982012834,0.122,65777.0,65776.0,0.33432155]
[1728982013049,0.122,65777.0,65776.0,0.2095927]
[1728982014041,0.122,65777.0,65776.0,0.33425557]
[1728982016232,0.002,65777.0,65776.0,0.33425557]
[1728982016647,0.122,65777.0,65776.0,0.33425557]
[1728982017147,0.122,65777.0,65776.0,0.2095927]
[1728982017739,0.002,65777.0,65776.0,0.2095927]
[1728982017949,0.122,65777.0,65776.0,0.2095927]
[1728982018736,0.23727055,65777.0,65776.0,0.10409009]
[1728982019348,0.29181995,65777.0,65776.0,0.10409009]
[1728982020445,0.29181995,65777.0,65776.0,0.06228649]
[1728982023347,0.36786795,65777.0,65776.0,0.06228649]
[1728982025661,0.36802271,65777.0,65776.0,0.06228649]
[1728982026747,0.198048,65777.0,65776.0,0.2581505]
[1728982027950,0.198048,65777.0,65776.0,0.16689886]
[1728982028162,0.198048,65777.0,65776.0,0.2581621]
[1728982028452,0.122,65777.0,65776.0,0.2235167]
[1728982030253,0.122,65777.0,65776.0,0.13225346]
[1728982030855,1.622,65777.0,65776.0,0.13225346]
[1728982031850,0.122,65777.0,65776.0,0.13225346]
[1728982032158,0.002,65777.0,65776.0,0.13225346]
[1728982032551,0.002,65777.0,65776.0,0.25679562]
[1728982033856,0.002,65777.0,65776.0,0.02764109]
[1728982033857,0.03365167,65777.0,65776.0,0.02764109]
[1728982034053,0.08033471,65777.0,65776.0,0.076049]
[1728982034259,0.11757888,65777.0,65776.0,0.076049]
[1728982039963,0.11756553,65777.0,65776.0,0.076049]
[1728982040763,0.11756685,65777.0,65776.0,0.076049]
[1728982041762,0.002,65777.0,65776.0,0.30519273]
[1728982043150,0.002,65777.0,65776.0,0.1805872]
[1728982043362,0.002,65777.0,65776.0,0.30502432]
[1728982043856,0.002,65777.0,65776.0,0.42502432]
[1728982044956,0.002,65777.0,65776.0,0.4245657]
[1728982047165,0.001,65777.0,65776.0,0.4245657]
[1728982047367,0.002,65777.0,65776.0,0.4245657]
[1728982047863,1.5,65784.0,65783.0,0.076041]
[1728982048163,1.5,65784.0,65783.0,0.18069314]
[1728982048868,1.6717726,65784.0,65783.0,0.12]
[1728982049164,1.6717726,65784.0,65783.0,0.196041]
[1728982049368,0.1717726,65784.0,65783.0,0.196041]
[1728982049670,0.11722895,65784.0,65783.0,0.196041]
[1728982049969,0.11722895,65784.0,65783.0,0.197041]
[1728982050166,0.11722895,65784.0,65783.0,0.677841]
[1728982050368,0.0106,65793.0,65783.0,0.6018]
[1728982050669,0.196021,65801.0,65796.0,0.076026]
[1728982050670,0.0106,65797.0,65796.0,0.076026]
[1728982050871,0.076021,65801.0,65800.0,0.076022]
[1728982050872,0.13055504,65801.0,65800.0,0.076022]
[1728982051068,0.076022,65800.0,65797.0,0.076024]
[1728982051268,0.076022,65800.0,65796.0,0.1204]
[1728982051269,1.5,65799.0,65798.0,0.076024]
[1728982051466,1.55453404,65799.0,65798.0,0.076024]
[1728982053267,1.55453404,65799.0,65798.0,0.079024]
[1728982053470,0.05453404,65799.0,65798.0,0.079024]
[1728982053665,0.17453404,65800.0,65799.0,0.076023]
[1728982053970,0.17453404,65800.0,65799.0,0.076423]
[1728982054765,0.05453404,65800.0,65799.0,0.198423]
[1728982055466,0.0466648,65800.0,65799.0,0.198423]
[1728982056871,0.0004,65802.0,65801.0,0.07602]
[1728982057063,0.0004,65802.0,65801.0,0.07642]
[1728982057970,0.0014,65802.0,65801.0,0.07642]
[1728982058172,0.0034,65802.0,65801.0,0.07642]
[1728982060273,0.1234,65802.0,65801.0,0.07642]
[1728982061965,0.1234,65802.0,65801.0,0.0004]
[1728982062268,0.2434,65802.0,65796.0,0.0004]
[1728982062467,0.556825,65797.0,65796.0,0.0004]
[1728982062670,0.556825,65797.0,65792.0,0.0004]
[1728982062967,0.07603,65793.0,65792.0,0.0004]
[1728982063171,0.07603,65793.0,65792.0,0.02803514]
[1728982063373,0.12593,65793.0,65792.0,0.0004]
[1728982063760,0.23921719,65793.0,65792.0,0.0004]
[1728982063960,0.23921974,65793.0,65792.0,0.0004]
[1728982064267,0.24021974,65793.0,65792.0,0.0074]
[1728982064471,0.37750411,65793.0,65792.0,0.0074]
[1728982065270,0.37851839,65793.0,65792.0,0.0074]
[1728982065578,0.24261974,65793.0,65792.0,0.00462579]
[1728982065773,0.076032,65791.0,65788.0,0.10371943]
[1728982065975,0.12,65789.0,65788.0,0.10371943]
[1728982066163,0.23328974,65789.0,65788.0,0.10371943]
[1728982066767,0.28783007,65789.0,65788.0,0.0649948]
[1728982066972,0.28783007,65789.0,65788.0,0.0917329]
[1728982067577,0.28783007,65789.0,65788.0,0.0967329]
[1728982067773,0.28883007,65789.0,65788.0,0.0967329]
[1728982068277,0.16783007,65789.0,65788.0,0.0967329]
[1728982068477,0.11428974,65789.0,65788.0,0.0967329]
[1728982068778,0.11428318,65789.0,65788.0,0.0967329]
[1728982068963,0.11428318,65789.0,65788.0,0.0917329]
[1728982069167,0.11528318,65789.0,65788.0,0.0947329]
[1728982071862,0.002,65789.0,65788.0,0.0947329]
[1728982073382,0.002,65789.0,65788.0,0.27710118]
[1728982074376,0.002,65789.0,65788.0,0.29074099]
[1728982074576,0.002,65789.0,65788.0,0.32103545]
[1728982075272,0.002,65789.0,65788.0,0.41225497]
[1728982077183,0.002,65789.0,65788.0,0.32103545]
[1728982077979,0.1204,65793.0,65792.0,0.076031]
[1728982078179,0.1204,65793.0,65792.0,0.18273355]
[1728982078380,0.1204,65793.0,65792.0,0.076431]
[1728982078577,0.1204,65793.0,65792.0,0.18283358]
[1728982078773,0.1204,65793.0,65792.0,0.076431]
[1728982079179,0.1204,65793.0,65792.0,0.079431]
[1728982079778,0.1204,65793.0,65792.0,0.14013003]
[1728982080278,0.1204,65793.0,65792.0,0.079431]
[1728982081782,0.19643,65793.0,65792.0,0.079431]
[1728982082179,0.1204,65793.0,65792.0,0.079431]
[1728982083180,0.19643,65793.0,65792.0,0.0034]
[1728982083381,0.19643,65793.0,65792.0,0.04893136]
[1728982083689,0.19643,65793.0,65792.0,0.0034]
[1728982084779,0.19643,65793.0,65792.0,0.04893136]
[1728982085184,0.19643,65793.0,65792.0,0.0014]
[1728982086882,0.19643,65793.0,65789.0,0.076034]
[1728982086883,0.23368006,65793.0,65789.0,0.01655008]
[1728982087081,0.1678165,65792.0,65788.0,0.0267381]
[1728982087385,0.076033,65790.0,65789.0,0.076034]
[1728982087686,0.39239711,65790.0,65789.0,0.076034]
[1728982087885,0.47630536,65790.0,65789.0,0.076034]
[1728982088190,0.53084181,65790.0,65789.0,0.076034]
[1728982088389,0.36384951,65790.0,65789.0,0.080034]
[1728982089083,0.30931306,65790.0,65789.0,0.076034]
[1728982089277,0.47635274,65790.0,65789.0,0.080034]
[1728982089483,0.30931306,65790.0,65789.0,0.080034]
[1728982090281,0.47635274,65790.0,65789.0,0.080034]
[1728982090484,0.30931306,65790.0,65789.0,0.004]
[1728982091183,0.36385207,65790.0,65789.0,0.004]
[1728982091382,0.53097231,65790.0,65789.0,0.004]
[1728982091588,0.36385207,65790.0,65789.0,0.004]
[1728982091885,0.076035,65788.0,65786.0,0.076038]
[1728982092191,0.22540881,65787.0,65786.0,0.10376067]
[1728982092393,0.30931706,65787.0,65786.0,0.10376067]
[1728982092985,0.30931706,65787.0,65786.0,0.10876067]
[1728982093785,0.196037,65787.0,65786.0,0.21619674]
[1728982093993,0.15799211,65787.0,65786.0,0.34330217]
[1728982094486,0.15799211,65787.0,65786.0,0.33830217]
[1728982094793,0.08395511,65787.0,65786.0,0.26726417]
[1728982094990,0.15999211,65787.0,65786.0,0.26726417]
[1728982095487,0.15999211,65787.0,65786.0,0.14015874]
[1728982096694,0.15999211,65787.0,65786.0,0.26787667]
[1728982099281,1.37999511,65787.0,65778.0,0.0035]
[1728982099584,0.436841,65783.0,65782.0,0.07600379]
[1728982099781,0.076042,65782.0,65781.0,0.07600379]
[1728982099985,0.3608,65783.0,65780.0,0.07600379]
[1728982099986,0.076044,65781.0,65780.0,0.07600379]
[1728982100183,0.076045,65780.0,65779.0,0.07600379]
[1728982100390,0.076045,65780.0,65778.0,0.07600379]
[1728982100595,0.076047,65778.0,65777.0,0.07600379]
[1728982100888,0.196047,65778.0,65777.0,0.07600379]
[1728982101481,0.196047,65778.0,65776.0,0.07600379]
[1728982101482,0.076048,65777.0,65776.0,0.07600379]
[1728982101689,0.196048,65777.0,65776.0,0.07600379]
[1728982101894,0.62359746,65777.0,65773.0,0.0035]
[1728982102085,0.196052,65774.0,65773.0,0.0035]
[1728982102286,0.18675003,65774.0,65769.0,0.076057]
[1728982102488,0.12,65770.0,65769.0,0.076057]
[1728982102685,0.14950413,65770.0,65769.0,0.076057]
[1728982104895,0.15050413,65770.0,65769.0,0.076057]
[1728982105799,0.15137997,65770.0,65769.0,0.077057]
[1728982107087,0.15137997,65770.0,65769.0,0.001]
[1728982107291,0.22743597,65770.0,65769.0,0.001]
[1728982108897,0.04583603,65770.0,65769.0,0.12757262]
[1728982109105,0.16583603,65770.0,65769.0,0.12757262]
[1728982109897,0.12,65770.0,65769.0,0.20362962]
[1728982110095,0.196056,65770.0,65769.0,0.20362962]
[1728982110293,0.196056,65770.0,65769.0,0.12757262]
[1728982112491,0.196056,65770.0,65769.0,0.001]
[1728982112895,0.12,65770.0,65769.0,0.077057]
[1728982114391,0.12,65770.0,65769.0,0.1820771]
[1728982114592,0.196056,65770.0,65769.0,0.1060201]
[1728982114910,0.196056,65770.0,65761.0,0.0035]
[1728982114911,1.372176,65770.0,65761.0,0.0035]
[1728982115098,0.24,65762.0,65757.0,0.0035]
[1728982115297,0.196069,65759.0,65758.0,0.12555817]
[1728982115499,0.196069,65759.0,65756.0,0.3608]
[1728982115500,0.12,65759.0,65756.0,0.3608]
[1728982115700,0.076071,65758.0,65757.0,0.12564244]
[1728982115901,0.12,65759.0,65756.0,0.3608]
[1728982116095,0.12,65759.0,65756.0,0.38821372]
[1728982116096,0.076071,65757.0,65756.0,0.38821372]
[1728982116301,0.076071,65757.0,65756.0,0.51294533]
[1728982116499,0.076074,65755.0,65754.0,0.3608]
[1728982116798,0.076074,65755.0,65753.0,0.02696983]
[1728982116799,0.076075,65754.0,65753.0,0.02696983]
[1728982117104,0.076075,65754.0,65750.0,0.076079]
[1728982117105,0.196075,65754.0,65750.0,0.076079]
[1728982117409,0.12,65751.0,65750.0,0.076079]
[1728982119509,0.121,65751.0,65750.0,0.076079]
[1728982119702,0.122,65751.0,65750.0,0.077079]
[1728982124206,0.06870957,65751.0,65750.0,0.077079]
[1728982128407,0.06870957,65751.0,65750.0,0.16794636]
[1728982129400,0.06870957,65751.0,65750.0,0.077079]
[1728982130009,0.06870957,65751.0,65750.0,0.18165598]
[1728982130210,0.06870957,65751.0,65750.0,0.10557698]